[Event "*** Titled Tuesday Blitz"]
[Site "Chess.com"]
[Date "2021.03.30"]
[Round "3"]
[White "Tpros"]
[Black "GM_Crest"]
[Result "0-1"]
[WhiteElo "2458"]
[BlackElo "2734"]
[TimeControl "180+1"]
[EndTime "10:27:30 PDT"]
[Termination "GM_Crest won on time"]

1. c4 {[%clk 0:02:50.1]} 1... Nf6 {[%clk 0:02:59.1]} 2. d3 {[%clk 0:02:48.3]}
2... c5 {[%clk 0:02:52.6]} 3. g3 {[%clk 0:02:47.4]} 3... e6 {[%clk 0:02:38.2]}
4. Bg2 {[%clk 0:02:45.9]} 4... d5 {[%clk 0:02:38.8]} 5. Nd2 {[%clk 0:02:38.9]}
5... Nc6 {[%clk 0:02:38.4]} 6. Ngf3 {[%clk 0:02:36.5]} 6... Be7 {[%clk
0:02:37.9]} 7. O-O {[%clk 0:02:36]} 7... O-O {[%clk 0:02:38.1]} 8. cxd5 {[%clk
0:02:29.9]} 8... exd5 {[%clk 0:02:37.9]} 9. e4 {[%clk 0:02:29.5]} 9... h6 {[%clk
0:02:14.7]} 10. a3 {[%clk 0:02:22.7]} 10... Be6 {[%clk 0:02:13.7]} 11. Re1
{[%clk 0:02:19.8]} 11... Qb6 {[%clk 0:02:09.5]} 12. Qc2 {[%clk 0:02:14.8]} 12...
Rfd8 {[%clk 0:02:06.3]} 13. b3 {[%clk 0:01:52]} 13... Rac8 {[%clk 0:02:04.7]}
14. Rb1 {[%clk 0:01:46.8]} 14... a5 {[%clk 0:01:51.3]} 15. exd5 {[%clk
0:01:43.3]} 15... Bxd5 {[%clk 0:01:50.6]} 16. Nc4 {[%clk 0:01:42.9]} 16... Qa6
{[%clk 0:01:50.4]} 17. Be3 {[%clk 0:01:24.7]} 17... b5 {[%clk 0:01:48.5]} 18.
Ncd2 {[%clk 0:01:19.1]} 18... Nd4 {[%clk 0:01:46.2]} 19. Qb2 {[%clk 0:00:44.1]}
19... Qb7 {[%clk 0:01:43.7]} 20. Bxd4 {[%clk 0:00:28.8]} 20... cxd4 {[%clk
0:01:42.7]} 21. Nh4 {[%clk 0:00:16.5]} 21... Bxg2 {[%clk 0:01:38.1]} 22. Nxg2
{[%clk 0:00:17.4]} 22... Rc3 {[%clk 0:01:38.1]} 23. Nf4 {[%clk 0:00:15.2]} 23...
g5 {[%clk 0:01:26.7]} 24. Ng2 {[%clk 0:00:09.2]} 24... Rxd3 {[%clk 0:01:23.9]}
25. b4 {[%clk 0:00:08.9]} 25... axb4 {[%clk 0:01:22.9]} 26. axb4 {[%clk
0:00:09.8]} 26... Bf8 {[%clk 0:01:16.6]} 27. Re2 {[%clk 0:00:09.2]} 27... Rc3
{[%clk 0:01:13.4]} 28. Ne1 {[%clk 0:00:08.2]} 28... Qd5 {[%clk 0:01:09.7]} 29.
Rc1 {[%clk 0:00:04.2]} 29... Rdc8 {[%clk 0:01:08.5]} 30. Nd3 {[%clk 0:00:03.6]}
30... Rxc1+ {[%clk 0:01:01.3]} 31. Nxc1 {[%clk 0:00:02.4]} 31... Bxb4 {[%clk
0:01:01.3]} 0-1

[Event "*** Titled Tuesday Blitz"]
[Site "Chess.com"]
[Date "2021.03.30"]
[Round "3"]
[White "DeTimmerman"]
[Black "parintele_chess"]
[Result "1-0"]
[WhiteElo "2731"]
[BlackElo "2252"]
[TimeControl "180+1"]
[EndTime "10:27:33 PDT"]
[Termination "DeTimmerman won on time"]

1. b4 {[%clk 0:03:00.9]} 1... e5 {[%clk 0:02:54.5]} 2. Bb2 {[%clk 0:02:59.8]}
2... f6 {[%clk 0:02:50.5]} 3. e4 {[%clk 0:02:59.4]} 3... c6 {[%clk 0:02:40]} 4.
a3 {[%clk 0:02:57.8]} 4... d5 {[%clk 0:02:38.8]} 5. exd5 {[%clk 0:02:53.1]} 5...
cxd5 {[%clk 0:02:39.5]} 6. Nf3 {[%clk 0:02:53.2]} 6... a6 {[%clk 0:02:37.7]} 7.
Be2 {[%clk 0:02:51.2]} 7... Nc6 {[%clk 0:02:37.4]} 8. d3 {[%clk 0:02:45.3]} 8...
Bd6 {[%clk 0:02:29.8]} 9. O-O {[%clk 0:02:45.1]} 9... Nge7 {[%clk 0:02:29.4]}
10. c4 {[%clk 0:02:44]} 10... Be6 {[%clk 0:02:25.7]} 11. Nc3 {[%clk 0:02:35.7]}
11... d4 {[%clk 0:02:19.1]} 12. Ne4 {[%clk 0:02:35.4]} 12... O-O {[%clk
0:02:17.8]} 13. Nfd2 {[%clk 0:02:31.8]} 13... h6 {[%clk 0:02:13.6]} 14. Nxd6
{[%clk 0:02:19.7]} 14... Qxd6 {[%clk 0:02:12.5]} 15. Ne4 {[%clk 0:02:20.6]}
15... Qc7 {[%clk 0:02:06.8]} 16. Nc5 {[%clk 0:02:21.3]} 16... Bf7 {[%clk
0:02:05.9]} 17. Bc1 {[%clk 0:02:20.1]} 17... b6 {[%clk 0:02:03.2]} 18. Nb3
{[%clk 0:02:16.6]} 18... f5 {[%clk 0:01:58.3]} 19. Bf3 {[%clk 0:02:07.3]} 19...
e4 {[%clk 0:01:44.7]} 20. dxe4 {[%clk 0:02:03.9]} 20... Bxc4 {[%clk 0:01:44.6]}
21. Be2 {[%clk 0:02:03.9]} 21... b5 {[%clk 0:01:37.9]} 22. Nc5 {[%clk
0:01:54.1]} 22... fxe4 {[%clk 0:01:31]} 23. Nxe4 {[%clk 0:01:55]} 23... Qe5
{[%clk 0:01:24.3]} 24. Bd3 {[%clk 0:01:52.8]} 24... Rfe8 {[%clk 0:01:06.5]} 25.
Nc5 {[%clk 0:01:49.9]} 25... Rad8 {[%clk 0:00:59.1]} 26. Bb2 {[%clk 0:01:43.8]}
26... Nd5 {[%clk 0:00:58]} 27. Qc2 {[%clk 0:01:38.1]} 27... Bxd3 {[%clk
0:00:49.5]} 28. Nxd3 {[%clk 0:01:39]} 28... Qd6 {[%clk 0:00:44.2]} 29. Rae1
{[%clk 0:01:39]} 29... Rxe1 {[%clk 0:00:11.3]} 30. Rxe1 {[%clk 0:01:39.9]} 30...
Rc8 {[%clk 0:00:11.1]} 31. Nc5 {[%clk 0:01:34.4]} 31... Ne5 {[%clk 0:00:06.5]}
32. Bxd4 {[%clk 0:01:32.2]} 32... Nxb4 {[%clk 0:00:06.3]} 33. Qb3+ {[%clk
0:01:26.1]} 33... Nd5 {[%clk 0:00:05.9]} 34. Ne4 {[%clk 0:01:17.2]} 34... Qe6
{[%clk 0:00:03.7]} 35. Nd2 {[%clk 0:01:15.4]} 1-0

[Event "*** Titled Tuesday Blitz"]
[Site "Chess.com"]
[Date "2021.03.30"]
[Round "3"]
[White "Fandorine"]
[Black "KNCP_719"]
[Result "1-0"]
[WhiteElo "2876"]
[BlackElo "2626"]
[TimeControl "180+1"]
[EndTime "10:27:34 PDT"]
[Termination "Fandorine won by resignation"]

1. Nf3 {[%clk 0:03:00.9]} 1... d5 {[%clk 0:02:59.3]} 2. e3 {[%clk 0:03:00.2]}
2... Nf6 {[%clk 0:02:59.1]} 3. c4 {[%clk 0:02:58.6]} 3... c6 {[%clk 0:02:58.8]}
4. Nc3 {[%clk 0:02:58.5]} 4... e6 {[%clk 0:02:49.2]} 5. b3 {[%clk 0:02:58.1]}
5... a6 {[%clk 0:02:48.5]} 6. Bb2 {[%clk 0:02:54.5]} 6... c5 {[%clk 0:02:48.2]}
7. cxd5 {[%clk 0:02:52.3]} 7... exd5 {[%clk 0:02:49.1]} 8. d4 {[%clk 0:02:52.3]}
8... Be6 {[%clk 0:02:42]} 9. Be2 {[%clk 0:02:50.2]} 9... Nc6 {[%clk 0:02:42.1]}
10. O-O {[%clk 0:02:49.9]} 10... Be7 {[%clk 0:02:29.4]} 11. Rc1 {[%clk 0:02:47]}
11... O-O {[%clk 0:02:26.9]} 12. dxc5 {[%clk 0:02:45.2]} 12... Bxc5 {[%clk
0:02:25.6]} 13. Nxd5 {[%clk 0:02:40.1]} 13... Nxd5 {[%clk 0:01:53.9]} 14. Rxc5
{[%clk 0:02:39.6]} 14... Nde7 {[%clk 0:01:29.2]} 15. Nd4 {[%clk 0:02:22.7]}
15... Bd5 {[%clk 0:01:14.7]} 16. Nxc6 {[%clk 0:02:15.5]} 16... Bxc6 {[%clk
0:01:12]} 17. Bc4 {[%clk 0:02:14.1]} 17... Ng6 {[%clk 0:00:59.5]} 18. Qxd8
{[%clk 0:01:47.1]} 18... Raxd8 {[%clk 0:01:00.4]} 19. Bc3 {[%clk 0:01:44.7]}
19... Rc8 {[%clk 0:00:42.4]} 20. Rc1 {[%clk 0:01:36.5]} 20... Rfd8 {[%clk
0:00:28.7]} 21. f3 {[%clk 0:01:32]} 21... Nf8 {[%clk 0:00:25.7]} 22. Ba5 {[%clk
0:01:25.8]} 22... Re8 {[%clk 0:00:22.8]} 23. Bd5 {[%clk 0:00:55.6]} 23... Nd7
{[%clk 0:00:17.2]} 24. Bxc6 {[%clk 0:00:49.7]} 24... Rxc6 {[%clk 0:00:02.7]} 25.
Rxc6 {[%clk 0:00:50]} 25... bxc6 {[%clk 0:00:03.6]} 26. Rxc6 {[%clk 0:00:50.3]}
26... h5 {[%clk 0:00:03.5]} 27. Rd6 {[%clk 0:00:45]} 27... Ne5 {[%clk
0:00:03.5]} 28. Rd8 {[%clk 0:00:44.2]} 1-0

[Event "*** Titled Tuesday Blitz"]
[Site "Chess.com"]
[Date "2021.03.30"]
[Round "3"]
[White "BogdanDeac"]
[Black "Gloomy_Wanderer"]
[Result "1-0"]
[WhiteElo "3026"]
[BlackElo "2711"]
[TimeControl "180+1"]
[EndTime "10:27:36 PDT"]
[Termination "BogdanDeac won by resignation"]

1. Nf3 {[%clk 0:03:00.9]} 1... Nf6 {[%clk 0:03:00.2]} 2. c4 {[%clk 0:03:00.4]}
2... e6 {[%clk 0:03:00.6]} 3. Nc3 {[%clk 0:02:59]} 3... d5 {[%clk 0:03:00.6]} 4.
d4 {[%clk 0:02:59]} 4... Bb4 {[%clk 0:03:00.6]} 5. Bg5 {[%clk 0:02:58.2]} 5...
dxc4 {[%clk 0:03:00.9]} 6. e4 {[%clk 0:02:57.7]} 6... h6 {[%clk 0:03:00.3]} 7.
Bxf6 {[%clk 0:02:57.6]} 7... Qxf6 {[%clk 0:03:01.2]} 8. Bxc4 {[%clk 0:02:57.9]}
8... c5 {[%clk 0:03:01.9]} 9. O-O {[%clk 0:02:58.1]} 9... O-O {[%clk 0:03:02]}
10. e5 {[%clk 0:02:57.5]} 10... Qd8 {[%clk 0:03:02.2]} 11. Ne4 {[%clk
0:02:57.5]} 11... cxd4 {[%clk 0:03:02.4]} 12. Qe2 {[%clk 0:02:56.8]} 12... Be7
{[%clk 0:03:02.5]} 13. Rfd1 {[%clk 0:02:56.1]} 13... Qa5 {[%clk 0:02:27.6]} 14.
a3 {[%clk 0:02:52.8]} 14... Nc6 {[%clk 0:02:24.8]} 15. b4 {[%clk 0:02:34.6]}
15... Qc7 {[%clk 0:02:12.1]} 16. Ned2 {[%clk 0:02:10.5]} 16... Rd8 {[%clk
0:02:01.2]} 17. Qe4 {[%clk 0:02:01.4]} 17... Bf8 {[%clk 0:01:44.7]} 18. h4
{[%clk 0:01:28.1]} 18... g6 {[%clk 0:01:44.2]} 19. h5 {[%clk 0:01:27.7]} 19...
g5 {[%clk 0:01:43.9]} 20. Bd3 {[%clk 0:01:17.4]} 20... Bg7 {[%clk 0:01:43.8]}
21. Rac1 {[%clk 0:01:17.3]} 21... a6 {[%clk 0:01:20.2]} 22. Nc4 {[%clk
0:00:50.7]} 22... Bd7 {[%clk 0:01:20.1]} 23. Nd6 {[%clk 0:00:45.3]} 23... Be8
{[%clk 0:01:09.9]} 24. Nxd4 {[%clk 0:00:35]} 24... Qb6 {[%clk 0:00:29.9]} 25.
Qh7+ {[%clk 0:00:30.1]} 25... Kf8 {[%clk 0:00:29.8]} 26. N4f5 {[%clk 0:00:30.3]}
26... exf5 {[%clk 0:00:25.7]} 27. Nxf5 {[%clk 0:00:30.5]} 27... Bxe5 {[%clk
0:00:25.8]} 28. Qxh6+ {[%clk 0:00:30.4]} 28... Kg8 {[%clk 0:00:26.2]} 29. Ne7+
{[%clk 0:00:29.6]} 29... Nxe7 {[%clk 0:00:21.3]} 30. Qxb6 {[%clk 0:00:29.2]} 1-0

[Event "*** Titled Tuesday Blitz"]
[Site "Chess.com"]
[Date "2021.03.30"]
[Round "3"]
[White "RobertoJBM"]
[Black "Leo_C"]
[Result "0-1"]
[WhiteElo "2705"]
[BlackElo "2362"]
[TimeControl "180+1"]
[EndTime "10:27:36 PDT"]
[Termination "Leo_C won by resignation"]

1. e4 {[%clk 0:03:00.9]} 1... c6 {[%clk 0:02:59.9]} 2. d4 {[%clk 0:02:59.8]}
2... d5 {[%clk 0:02:59.4]} 3. exd5 {[%clk 0:02:59.3]} 3... cxd5 {[%clk
0:02:58.8]} 4. Bd3 {[%clk 0:02:59.9]} 4... Nc6 {[%clk 0:02:58.5]} 5. c3 {[%clk
0:02:59.9]} 5... Qc7 {[%clk 0:02:58.6]} 6. Ne2 {[%clk 0:02:56.9]} 6... Bg4
{[%clk 0:02:52.9]} 7. O-O {[%clk 0:02:56.2]} 7... e6 {[%clk 0:02:52.6]} 8. Qe1
{[%clk 0:02:56]} 8... Bxe2 {[%clk 0:02:51.3]} 9. Qxe2 {[%clk 0:02:56.1]} 9...
Bd6 {[%clk 0:02:51.1]} 10. f4 {[%clk 0:02:56.3]} 10... Nge7 {[%clk 0:02:50.1]}
11. g3 {[%clk 0:02:55.4]} 11... O-O {[%clk 0:02:42.1]} 12. Nd2 {[%clk
0:02:54.8]} 12... Ng6 {[%clk 0:02:36.7]} 13. Nf3 {[%clk 0:02:54.1]} 13... Rae8
{[%clk 0:02:06]} 14. Ne5 {[%clk 0:02:49.3]} 14... Nce7 {[%clk 0:02:03.2]} 15.
Be3 {[%clk 0:02:45.5]} 15... f6 {[%clk 0:02:02.8]} 16. Nxg6 {[%clk 0:02:44.1]}
16... Nxg6 {[%clk 0:02:02.2]} 17. Rae1 {[%clk 0:02:38.6]} 17... a6 {[%clk
0:01:56.3]} 18. Bc1 {[%clk 0:02:33.3]} 18... f5 {[%clk 0:01:39.2]} 19. Qf3
{[%clk 0:02:30.2]} 19... Rf7 {[%clk 0:01:35.7]} 20. Re2 {[%clk 0:02:29.8]} 20...
Rfe7 {[%clk 0:01:33.7]} 21. Rfe1 {[%clk 0:02:30.1]} 21... Nf8 {[%clk 0:01:30.9]}
22. g4 {[%clk 0:02:28.1]} 22... fxg4 {[%clk 0:01:26.5]} 23. Qxg4 {[%clk
0:02:27.2]} 23... Rf7 {[%clk 0:01:25.3]} 24. Rf1 {[%clk 0:02:10.8]} 24... Qd7
{[%clk 0:01:00.3]} 25. Rff2 {[%clk 0:02:08.2]} 25... Qc8 {[%clk 0:00:32]} 26.
Kg2 {[%clk 0:02:02.8]} 26... Nd7 {[%clk 0:00:31.6]} 27. Rxe6 {[%clk 0:01:58.5]}
27... Nf6 {[%clk 0:00:31.4]} 28. Rxe8+ {[%clk 0:01:57.3]} 28... Qxe8 {[%clk
0:00:32.3]} 29. Qe2 {[%clk 0:01:54.2]} 29... Ne4 {[%clk 0:00:31.7]} 30. Bxe4
{[%clk 0:01:54.1]} 30... dxe4 {[%clk 0:00:31.3]} 31. Qg4 {[%clk 0:01:49.2]}
31... e3 {[%clk 0:00:28.6]} 32. Re2 {[%clk 0:01:49.1]} 32... Rxf4 {[%clk
0:00:27.7]} 33. Qh3 {[%clk 0:01:39.9]} 33... Qg6+ {[%clk 0:00:27.2]} 34. Kh1
{[%clk 0:01:31.3]} 34... Qe4+ {[%clk 0:00:23.9]} 35. Kg1 {[%clk 0:01:31.1]}
35... Rg4+ {[%clk 0:00:21.7]} 36. Rg2 {[%clk 0:01:15.5]} 36... e2 {[%clk
0:00:20.2]} 0-1

[Event "*** Titled Tuesday Blitz"]
[Site "Chess.com"]
[Date "2021.03.30"]
[Round "3"]
[White "Volodar_Murzin"]
[Black "gaby_przz"]
[Result "1-0"]
[WhiteElo "2756"]
[BlackElo "2461"]
[TimeControl "180+1"]
[EndTime "10:27:38 PDT"]
[Termination "Volodar_Murzin won by resignation"]

1. e4 {[%clk 0:03:00.9]} 1... c5 {[%clk 0:02:58.6]} 2. Nf3 {[%clk 0:03:00.5]}
2... Nc6 {[%clk 0:02:58.8]} 3. Bb5 {[%clk 0:02:59.8]} 3... Qb6 {[%clk 0:02:58]}
4. Nc3 {[%clk 0:02:37.9]} 4... e6 {[%clk 0:02:57.1]} 5. O-O {[%clk 0:02:36.8]}
5... a6 {[%clk 0:02:55.5]} 6. Bc4 {[%clk 0:02:34.4]} 6... Qc7 {[%clk 0:02:42.9]}
7. a4 {[%clk 0:02:30.2]} 7... Nf6 {[%clk 0:02:36.5]} 8. d3 {[%clk 0:02:29.7]}
8... Be7 {[%clk 0:02:32.7]} 9. Re1 {[%clk 0:02:22.6]} 9... d6 {[%clk 0:02:29.2]}
10. Bf4 {[%clk 0:02:22]} 10... O-O {[%clk 0:02:20]} 11. h3 {[%clk 0:02:19.5]}
11... Nd4 {[%clk 0:02:01.6]} 12. e5 {[%clk 0:01:25.5]} 12... dxe5 {[%clk
0:01:58.7]} 13. Bxe5 {[%clk 0:01:21.5]} 13... Qd8 {[%clk 0:01:49.8]} 14. Nxd4
{[%clk 0:01:13.1]} 14... cxd4 {[%clk 0:01:50.7]} 15. Ne2 {[%clk 0:01:12.5]}
15... Bc5 {[%clk 0:01:41.2]} 16. Qc1 {[%clk 0:01:07]} 16... Qb6 {[%clk
0:00:59.9]} 17. a5 {[%clk 0:00:35]} 17... Qa7 {[%clk 0:00:48.2]} 18. Bxf6 {[%clk
0:00:32.4]} 18... gxf6 {[%clk 0:00:47.2]} 19. Qh6 {[%clk 0:00:30.3]} 19... Be7
{[%clk 0:00:36.9]} 20. Ng3 {[%clk 0:00:21.6]} 20... Qc5 {[%clk 0:00:28]} 21. Re4
{[%clk 0:00:15.4]} 21... Kh8 {[%clk 0:00:18.9]} 22. Rh4 {[%clk 0:00:12.2]} 1-0

[Event "*** Titled Tuesday Blitz"]
[Site "Chess.com"]
[Date "2021.03.30"]
[Round "3"]
[White "picturesquecheck"]
[Black "J36225"]
[Result "1-0"]
[WhiteElo "2264"]
[BlackElo "2492"]
[TimeControl "180+1"]
[EndTime "10:27:38 PDT"]
[Termination "picturesquecheck won on time"]

1. e4 {[%clk 0:03:00.9]} 1... e5 {[%clk 0:02:57.9]} 2. Nf3 {[%clk 0:02:59.8]}
2... Nc6 {[%clk 0:02:57.7]} 3. Bb5 {[%clk 0:02:51.9]} 3... Nd4 {[%clk
0:02:56.1]} 4. Nxd4 {[%clk 0:02:50.1]} 4... exd4 {[%clk 0:02:55.7]} 5. O-O
{[%clk 0:02:50]} 5... Nf6 {[%clk 0:02:51.9]} 6. e5 {[%clk 0:02:47.3]} 6... Nd5
{[%clk 0:02:50.5]} 7. c3 {[%clk 0:02:42]} 7... c6 {[%clk 0:02:26.5]} 8. Bc4
{[%clk 0:02:38.4]} 8... Nb6 {[%clk 0:02:24.1]} 9. Bb3 {[%clk 0:02:37.2]} 9...
dxc3 {[%clk 0:02:19.9]} 10. bxc3 {[%clk 0:02:34.9]} 10... Be7 {[%clk 0:02:17.5]}
11. d4 {[%clk 0:02:34.7]} 11... O-O {[%clk 0:02:16.8]} 12. Re1 {[%clk
0:02:34.3]} 12... d5 {[%clk 0:02:14.2]} 13. Ba3 {[%clk 0:02:29.9]} 13... Bf5
{[%clk 0:02:12.3]} 14. Bxe7 {[%clk 0:02:28.4]} 14... Qxe7 {[%clk 0:02:11.6]} 15.
Nd2 {[%clk 0:02:28.3]} 15... Rae8 {[%clk 0:02:05]} 16. Qf3 {[%clk 0:02:23.8]}
16... Bg6 {[%clk 0:01:59.7]} 17. Qe3 {[%clk 0:02:21]} 17... f6 {[%clk
0:01:57.4]} 18. f4 {[%clk 0:02:19.7]} 18... Nc8 {[%clk 0:01:39.2]} 19. c4 {[%clk
0:02:00]} 19... dxc4 {[%clk 0:01:13.9]} 20. Nxc4 {[%clk 0:01:58.1]} 20... Bf7
{[%clk 0:01:10.6]} 21. Qg3 {[%clk 0:01:54.4]} 21... fxe5 {[%clk 0:00:56.3]} 22.
dxe5 {[%clk 0:01:51.8]} 22... Bxc4 {[%clk 0:00:52.6]} 23. Bxc4+ {[%clk
0:01:50.9]} 23... Kh8 {[%clk 0:00:52]} 24. Bb3 {[%clk 0:01:47.4]} 24... Nb6
{[%clk 0:00:42.5]} 25. Qe3 {[%clk 0:01:46.5]} 25... c5 {[%clk 0:00:37.6]} 26.
Rac1 {[%clk 0:01:41.3]} 26... Rc8 {[%clk 0:00:30]} 27. g3 {[%clk 0:01:30.8]}
27... c4 {[%clk 0:00:29.6]} 28. Bd1 {[%clk 0:01:30.7]} 28... c3 {[%clk
0:00:19.7]} 29. Bf3 {[%clk 0:01:25.4]} 29... Qc5 {[%clk 0:00:10.4]} 30. Kf2
{[%clk 0:01:20.6]} 30... Rfd8 {[%clk 0:00:03.8]} 31. Qxc5 {[%clk 0:01:16.6]}
31... Rxc5 {[%clk 0:00:03.6]} 32. Red1 {[%clk 0:01:17.1]} 32... Rdc8 {[%clk
0:00:01.3]} 33. Rd3 {[%clk 0:01:05.8]} 33... c2 {[%clk 0:00:01.2]} 34. Rd2
{[%clk 0:01:03.4]} 34... h6 {[%clk 0:00:01.3]} 35. Be4 {[%clk 0:01:00.6]} 1-0

[Event "*** Titled Tuesday Blitz"]
[Site "Chess.com"]
[Date "2021.03.30"]
[Round "3"]
[White "Manukyan_Artak"]
[Black "Susal_De_Silva"]
[Result "1-0"]
[WhiteElo "2460"]
[BlackElo "2677"]
[TimeControl "180+1"]
[EndTime "10:27:41 PDT"]
[Termination "Manukyan_Artak won by resignation"]

1. e4 {[%clk 0:03:00.9]} 1... e5 {[%clk 0:02:58.7]} 2. Nf3 {[%clk 0:03:00.3]}
2... Nc6 {[%clk 0:02:59.1]} 3. d4 {[%clk 0:02:58.2]} 3... exd4 {[%clk
0:02:59.1]} 4. Nxd4 {[%clk 0:02:57.7]} 4... Bb4+ {[%clk 0:02:59.1]} 5. c3 {[%clk
0:02:57]} 5... Bc5 {[%clk 0:02:59.7]} 6. Nxc6 {[%clk 0:02:56.4]} 6... bxc6
{[%clk 0:02:59.6]} 7. Bc4 {[%clk 0:02:55.9]} 7... Ne7 {[%clk 0:02:59.6]} 8.
Bxf7+ {[%clk 0:02:48.1]} 8... Kxf7 {[%clk 0:02:56.9]} 9. Qh5+ {[%clk 0:02:48.4]}
9... Ng6 {[%clk 0:02:53.2]} 10. Qxc5 {[%clk 0:02:48]} 10... d6 {[%clk
0:02:51.2]} 11. Qxc6 {[%clk 0:02:41]} 11... Bd7 {[%clk 0:02:48.6]} 12. Qc4+
{[%clk 0:02:34.7]} 12... Be6 {[%clk 0:02:48.6]} 13. Qe2 {[%clk 0:02:33.6]} 13...
Rf8 {[%clk 0:02:45.6]} 14. f4 {[%clk 0:02:32.2]} 14... Kg8 {[%clk 0:01:49.6]}
15. f5 {[%clk 0:02:23.9]} 15... Ne5 {[%clk 0:01:48.1]} 16. fxe6 {[%clk
0:02:19.6]} 16... Qh4+ {[%clk 0:01:47.6]} 17. g3 {[%clk 0:02:15.4]} 17... Qh3
{[%clk 0:01:46.8]} 18. Bf4 {[%clk 0:02:08.8]} 18... Rxf4 {[%clk 0:01:46.6]} 19.
gxf4 {[%clk 0:02:07]} 19... Nd3+ {[%clk 0:01:47.5]} 20. Kd1 {[%clk 0:01:48.5]}
20... Nxf4 {[%clk 0:01:46.6]} 21. Qf1 {[%clk 0:01:34.5]} 21... Qe3 {[%clk
0:01:27.4]} 22. Nd2 {[%clk 0:01:21.7]} 22... Rb8 {[%clk 0:00:30]} 23. Kc2 {[%clk
0:01:18.9]} 23... Rxb2+ {[%clk 0:00:20.6]} 24. Kxb2 {[%clk 0:01:18.5]} 24...
Qxd2+ {[%clk 0:00:21.3]} 25. Kb3 {[%clk 0:01:18.1]} 25... Nxe6 {[%clk 0:00:22]}
26. Qc4 {[%clk 0:01:14.2]} 26... Kf7 {[%clk 0:00:22.5]} 27. Rad1 {[%clk
0:00:59.5]} 27... Qg2 {[%clk 0:00:18.6]} 28. Rhg1 {[%clk 0:00:54.6]} 28... Qh3
{[%clk 0:00:16.7]} 29. e5 {[%clk 0:00:43.1]} 29... Ke7 {[%clk 0:00:13.9]} 30.
exd6+ {[%clk 0:00:42.8]} 30... cxd6 {[%clk 0:00:14.1]} 31. Rge1 {[%clk
0:00:42.9]} 31... Kd7 {[%clk 0:00:14.3]} 32. Qxe6+ {[%clk 0:00:41.4]} 32...
Qxe6+ {[%clk 0:00:15.2]} 33. Rxe6 {[%clk 0:00:42.2]} 33... Kxe6 {[%clk
0:00:16.1]} 1-0

[Event "*** Titled Tuesday Blitz"]
[Site "Chess.com"]
[Date "2021.03.30"]
[Round "3"]
[White "federicosellitti"]
[Black "annamaja"]
[Result "1-0"]
[WhiteElo "2545"]
[BlackElo "2345"]
[TimeControl "180+1"]
[EndTime "10:27:41 PDT"]
[Termination "federicosellitti won on time"]

1. e4 {[%clk 0:03:00.9]} 1... e6 {[%clk 0:03:00]} 2. b3 {[%clk 0:03:00.9]} 2...
d5 {[%clk 0:03:00.2]} 3. Bb2 {[%clk 0:03:01.4]} 3... c5 {[%clk 0:02:57.9]} 4.
exd5 {[%clk 0:02:58.8]} 4... exd5 {[%clk 0:02:58.5]} 5. Nf3 {[%clk 0:02:58.7]}
5... Nf6 {[%clk 0:02:58.9]} 6. Qe2+ {[%clk 0:02:57.6]} 6... Be6 {[%clk 0:02:44]}
7. Ng5 {[%clk 0:02:56.5]} 7... Qd7 {[%clk 0:02:36.1]} 8. Nxe6 {[%clk 0:02:46.3]}
8... fxe6 {[%clk 0:02:33.1]} 9. g3 {[%clk 0:02:46.4]} 9... Nc6 {[%clk
0:02:30.7]} 10. Bh3 {[%clk 0:02:46.2]} 10... Nd8 {[%clk 0:02:20.5]} 11. d3
{[%clk 0:02:42.8]} 11... Be7 {[%clk 0:02:04.7]} 12. Nd2 {[%clk 0:02:40.9]} 12...
O-O {[%clk 0:02:02]} 13. Nf3 {[%clk 0:02:38.4]} 13... h6 {[%clk 0:01:09.5]} 14.
O-O {[%clk 0:02:37.6]} 14... d4 {[%clk 0:00:39.3]} 15. Rae1 {[%clk 0:02:29.1]}
15... Nd5 {[%clk 0:00:28.2]} 16. Ne5 {[%clk 0:01:55.7]} 16... Qd6 {[%clk
0:00:28.2]} 17. a4 {[%clk 0:01:55.5]} 17... Bf6 {[%clk 0:00:21.2]} 18. Nc4
{[%clk 0:01:55.3]} 18... Qc6 {[%clk 0:00:06.2]} 19. f4 {[%clk 0:01:31.2]} 19...
Re8 {[%clk 0:00:06.2]} 20. Qh5 {[%clk 0:01:28.9]} 20... a6 {[%clk 0:00:02.8]}
21. g4 {[%clk 0:01:08.7]} 21... Nf7 {[%clk 0:00:03.1]} 22. g5 {[%clk 0:00:49.9]}
22... hxg5 {[%clk 0:00:02.3]} 23. fxg5 {[%clk 0:00:50.8]} 23... Nxg5 {[%clk
0:00:02.7]} 24. Bg2 {[%clk 0:00:51.5]} 24... b5 {[%clk 0:00:02.7]} 25. Ne5
{[%clk 0:00:45.7]} 25... Qc7 {[%clk 0:00:01.7]} 26. Bc1 {[%clk 0:00:45]} 26...
Bxe5 {[%clk 0:00:01.4]} 27. Bxg5 {[%clk 0:00:40.7]} 27... Rf8 {[%clk 0:00:01.3]}
28. Be4 {[%clk 0:00:38.4]} 28... Rxf1+ {[%clk 0:00:01.2]} 29. Rxf1 {[%clk
0:00:39.3]} 1-0

[Event "*** Titled Tuesday Blitz"]
[Site "Chess.com"]
[Date "2021.03.30"]
[Round "3"]
[White "Kozok"]
[Black "attack2mateU"]
[Result "0-1"]
[WhiteElo "2496"]
[BlackElo "2758"]
[TimeControl "180+1"]
[EndTime "10:27:43 PDT"]
[Termination "attack2mateU won by resignation"]

1. e4 {[%clk 0:03:00.8]} 1... c5 {[%clk 0:03:00]} 2. Nf3 {[%clk 0:03:00.5]} 2...
d6 {[%clk 0:03:00]} 3. d4 {[%clk 0:03:00.5]} 3... cxd4 {[%clk 0:03:00.9]} 4.
Nxd4 {[%clk 0:03:01.2]} 4... Nf6 {[%clk 0:03:01]} 5. Nc3 {[%clk 0:03:02]} 5...
a6 {[%clk 0:03:01.3]} 6. Be2 {[%clk 0:02:53.5]} 6... e5 {[%clk 0:03:00.9]} 7.
Nb3 {[%clk 0:02:51.7]} 7... Be7 {[%clk 0:03:00.8]} 8. O-O {[%clk 0:02:51.2]}
8... O-O {[%clk 0:03:00.8]} 9. a4 {[%clk 0:02:43.4]} 9... b6 {[%clk 0:02:35.2]}
10. Be3 {[%clk 0:02:27.2]} 10... Bb7 {[%clk 0:02:31.5]} 11. Bf3 {[%clk
0:02:26.3]} 11... Nc6 {[%clk 0:02:07.2]} 12. Qd2 {[%clk 0:02:16.1]} 12... Nb4
{[%clk 0:02:01.2]} 13. Rfd1 {[%clk 0:02:12]} 13... Rc8 {[%clk 0:02:00.8]} 14.
Nd5 {[%clk 0:01:13]} 14... Nfxd5 {[%clk 0:01:56.8]} 15. exd5 {[%clk 0:01:11.3]}
15... Nxc2 {[%clk 0:01:56]} 16. Rac1 {[%clk 0:01:11]} 16... Nxe3 {[%clk
0:01:55.3]} 17. fxe3 {[%clk 0:01:10]} 17... Qd7 {[%clk 0:01:50.5]} 18. a5 {[%clk
0:01:09.9]} 18... Qa4 {[%clk 0:01:43.8]} 19. Qd3 {[%clk 0:01:05.9]} 19... b5
{[%clk 0:01:17.6]} 20. Be4 {[%clk 0:00:56]} 20... g6 {[%clk 0:01:13.3]} 21. g4
{[%clk 0:00:56.4]} 21... Rc4 {[%clk 0:00:59.2]} 22. Nd2 {[%clk 0:00:50.6]} 22...
Rxc1 {[%clk 0:00:58.9]} 23. Rxc1 {[%clk 0:00:51.5]} 23... Qxa5 {[%clk
0:00:59.5]} 24. Nf3 {[%clk 0:00:48.9]} 24... Bc8 {[%clk 0:00:48.4]} 25. g5
{[%clk 0:00:44.1]} 25... Bg4 {[%clk 0:00:45.7]} 26. h4 {[%clk 0:00:43.6]} 26...
Qb4 {[%clk 0:00:34.8]} 27. Rc7 {[%clk 0:00:39.2]} 27... Bxf3 {[%clk 0:00:28.6]}
28. Bxf3 {[%clk 0:00:38.9]} 28... Qxh4 {[%clk 0:00:29.3]} 29. Bg2 {[%clk
0:00:26.5]} 29... Bxg5 {[%clk 0:00:27.1]} 30. Rc6 {[%clk 0:00:26.1]} 30... Qe1+
{[%clk 0:00:26.4]} 31. Kh2 {[%clk 0:00:26.9]} 31... Bxe3 {[%clk 0:00:26.5]} 32.
Rc5 {[%clk 0:00:18]} 0-1